fUST/lending_fUST_20250616
["ID","MTS","AMOUNT","RATE_DAILY","PERIOD"]
[366140554,1750084241559,-460.0,0.00020273,4]
[366140555,1750084241569,-460.0,0.00020273,4]
[366140556,1750084241579,-460.0,0.00020273,4]
[366140557,1750084241589,-460.0,0.00020273,4]
[366140558,1750084241599,-540.77,0.00020273,4]
[366140559,1750084241609,-460.0,0.00020273,4]
[366140560,1750084241619,-460.0,0.00020273,4]
[366140561,1750084241628,-2497.27,0.00020273,4]
[366140562,1750084241639,-557.51,0.00020273,4]
[366140563,1750084241648,-460.0,0.00020273,4]
[366140564,1750084241658,-1170.3,0.00020273,4]
[366140565,1750084241668,-460.0,0.00020273,4]
[366140566,1750084241678,-460.0,0.00020273,4]
[366140567,1750084241688,-349.27456634,0.00020273,4]
[366140568,1750084241697,-1001.87,0.00020273,4]
[366140569,1750084241707,-1782.22,0.00020273,4]
[366140570,1750084241717,-2387.94271684,0.00020348,3]
[366140571,1750084241727,-464.8,0.00020391,4]
[366140572,1750084241738,-160.0,0.00020502,2]
[366140573,1750084241749,-160.0,0.00020502,2]
[366140574,1750084241759,-229.90125484,0.00020502,2]
[366140575,1750084241770,-835.67987521,0.00020502,2]
[366140576,1750084241779,-160.0,0.00020502,2]
[366140577,1750084241789,-424.54874296,0.00020502,2]
[366140578,1750084241799,-160.0,0.00020502,2]
[366140579,1750084241808,-160.0,0.00020502,2]
[366140580,1750084241818,-845.47092152,0.00020502,2]
[366140581,1750084241828,-160.0,0.00020502,2]
[366140582,1750084241838,-160.0,0.00020502,2]
[366140583,1750084241849,-213.36025772,0.00020502,2]
[366140584,1750084241858,-160.0,0.00020502,2]
[366140585,1750084241868,-12537.89035583,0.00020502,2]
[366140586,1750084241878,-175.568,0.00020515,2]
[366140587,1750084241888,-384.12,0.00020537,3]
[366140588,1750084241898,-588.81,0.00020537,3]
[366140594,1750084242005,-294.41,0.00020537,3]
[366140596,1750084242015,-883.25,0.00020537,3]
[366140597,1750084242025,-1683.88173781,0.00020544,2]
[366140598,1750084242035,-500.0,0.00020547,2]
[366140599,1750084242045,-460.0,0.00020547,4]
[366140600,1750084242055,-1425.2,0.00020547,4]
[366140601,1750084242065,-460.0,0.00020547,4]
[366140603,1750084242075,-460.0,0.00020547,4]
[366140605,1750084242085,-972.08,0.00020547,4]
[366140606,1750084242095,-819.84,0.00020547,4]
[366140608,1750084242104,-1156.0,0.00020547,4]
[366140610,1750084242114,-460.0,0.00020547,4]
[366140612,1750084242124,-460.0,0.00020547,4]
[366140614,1750084242133,-460.0,0.00020547,4]
[366140616,1750084242143,-460.0,0.00020547,4]
[366140618,1750084242159,-460.0,0.00020547,4]
[366140620,1750084242168,-460.0,0.00020547,4]
[366140622,1750084242178,-460.0,0.00020547,4]
[366140624,1750084242188,-460.0,0.00020547,4]
[366140626,1750084242198,-540.77,0.00020547,4]
[366140628,1750084242208,-460.0,0.00020547,4]
[366140630,1750084242218,-321.11501844,0.00020547,4]
[366140632,1750084242229,-2497.27,0.00020547,4]
[366140634,1750084242240,-557.51,0.00020547,4]
[366140636,1750084242250,-460.0,0.00020547,4]
[366140638,1750084242259,-1170.3,0.00020547,4]
[366140640,1750084242269,-460.0,0.00020547,4]
[366140642,1750084242279,-460.0,0.00020547,4]
[366140644,1750084242289,-1001.87,0.00020547,4]
[366140646,1750084242299,-1782.22,0.00020547,4]
[366140647,1750084242308,-155.0,0.00020548,2]
[366140649,1750084242318,-2387.94271684,0.0002059,3]
[366140651,1750084242328,-464.8,0.00020665,4]
[366140653,1750084242337,-222.81599158,0.00020819,2]
[366140655,1750084242346,-460.0,0.00020821,4]
[366140656,1750084242357,-1425.2,0.00020821,4]
[366140658,1750084242367,-460.0,0.00020821,4]
[366140660,1750084242377,-460.0,0.00020821,4]
[366140662,1750084242387,-972.08,0.00020821,4]
[366140664,1750084242396,-819.84,0.00020821,4]
[366140666,1750084242406,-1156.0,0.00020821,4]
[366140668,1750084242418,-460.0,0.00020821,4]
[366140670,1750084242427,-460.0,0.00020821,4]
[366140672,1750084242437,-460.0,0.00020821,4]
[366140674,1750084242447,-460.0,0.00020821,4]
[366140676,1750084242456,-460.0,0.00020821,4]
[366140678,1750084242466,-460.0,0.00020821,4]
[366140680,1750084242475,-460.0,0.00020821,4]
[366140682,1750084242486,-460.0,0.00020821,4]
[366140684,1750084242496,-540.77,0.00020821,4]
[366140686,1750084242506,-460.0,0.00020821,4]
[366140688,1750084242516,-2497.27,0.00020821,4]
[366140690,1750084242526,-557.51,0.00020821,4]
[366140692,1750084242535,-460.0,0.00020821,4]
[366140694,1750084242545,-1170.3,0.00020821,4]
[366140695,1750084242555,-460.0,0.00020821,4]
[366140697,1750084242564,-460.0,0.00020821,4]
[366140699,1750084242574,-1001.87,0.00020821,4]
[366140701,1750084242583,-1782.22,0.00020821,4]
[366140703,1750084242593,-2387.94271684,0.00020831,4]
[366140705,1750084242602,-1667.82,0.00020922,2]
[366140707,1750084242611,-464.8,0.00020939,4]
[366140709,1750084242621,-800.0,0.00020953,2]
[366140711,1750084242631,-500.0,0.00020964,2]
[366140713,1750084242640,-259.73560002,0.00020977,2]
[366140715,1750084242650,-12537.89035583,0.00020995,3]
[366140717,1750084242659,-160.0,0.00020995,3]
[366140719,1750084242670,-213.36025772,0.00020995,3]
[366140721,1750084242680,-845.47092152,0.00020995,3]
[366140723,1750084242690,-2387.94271684,0.00021072,4]
[366140725,1750084242699,-476.1,0.00021085,3]
[366140726,1750084242709,-500.0,0.00021095,3]
[366140728,1750084242719,-460.0,0.00021095,4]
[366140730,1750084242728,-1425.2,0.00021095,4]
[366140732,1750084242739,-460.0,0.00021095,4]
[366140734,1750084242756,-460.0,0.00021095,4]
[366140736,1750084242767,-972.08,0.00021095,4]
[366140738,1750084242776,-819.84,0.00021095,4]
[366140740,1750084242786,-1156.0,0.00021095,4]
[366140742,1750084242795,-460.0,0.00021095,4]
[366140744,1750084242805,-460.0,0.00021095,4]
[366140745,1750084242815,-460.0,0.00021095,4]
[366140747,1750084242824,-460.0,0.00021095,4]
[366140749,1750084242834,-460.0,0.00021095,4]
[366140751,1750084242844,-460.0,0.00021095,4]
[366140753,1750084242854,-460.0,0.00021095,4]
[366140755,1750084242864,-460.0,0.00021095,4]
[366140757,1750084242873,-540.77,0.00021095,4]
[366140759,1750084242883,-398.42,0.00021095,4]
[366140761,1750084242892,-2497.27,0.00021095,4]
[366140762,1750084242902,-557.51,0.00021095,4]
[366140763,1750084242911,-188.75,0.00021095,4]
[366140765,1750084242921,-1170.3,0.00021095,4]
[366140767,1750084242931,-460.0,0.00021095,4]
[366140768,1750084242941,-460.0,0.00021095,4]
[366140769,1750084242950,-1001.87,0.00021095,4]
[366140770,1750084242960,-1782.22,0.00021095,4]
[366140771,1750084242970,-155.0,0.00021096,2]
[366140772,1750084242979,-479.0987343,0.00021178,2]
[366140773,1750084242990,-365.4091647,0.00021178,2]
[366140774,1750084243000,-365.4091647,0.00021178,2]
[366140775,1750084243009,-365.4091647,0.00021178,2]
[366140776,1750084243019,-464.8,0.00021213,4]
[366140777,1750084243029,-1683.88173781,0.00021277,2]
[366140778,1750084243039,-2387.94271684,0.00021314,5]
[366140779,1750084243050,-547.8500296,0.00021369,4]
[366140780,1750084243060,-1425.2,0.00021369,4]
[366140781,1750084243069,-460.0,0.00021369,4]
[366140782,1750084243079,-972.08,0.00021369,4]
[366140783,1750084243088,-460.0,0.00021369,4]
[366140784,1750084243098,-819.84,0.00021369,4]
[366140785,1750084243108,-1156.0,0.00021369,4]
[366140786,1750084243118,-460.0,0.00021369,4]
[366140787,1750084243128,-460.0,0.00021369,4]
[366140788,1750084243143,-460.0,0.00021369,4]
[366140789,1750084243161,-460.0,0.00021369,4]
[366140790,1750084243177,-460.0,0.00021369,4]
[366140791,1750084243193,-460.0,0.00021369,4]
[366140792,1750084243206,-460.0,0.00021369,4]
[366140793,1750084243217,-460.0,0.00021369,4]
[366140794,1750084243231,-540.77,0.00021369,4]
[366140796,1750084243245,-2497.27,0.00021369,4]
[366140797,1750084243259,-557.51,0.00021369,4]
[366140798,1750084243273,-1170.3,0.00021369,4]
[366140799,1750084243287,-460.0,0.00021369,4]
[366140800,1750084243301,-1001.87,0.00021369,4]
[366140803,1750084243314,-1782.22,0.00021369,4]
[366140804,1750084243329,-479.0,0.00021444,2]
[366140805,1750084243343,-464.8,0.00021487,4]
[366140806,1750084243357,-587.0,0.00021513,2]
[366140807,1750084243371,-587.0,0.00021515,2]
[366140808,1750084243384,-151.0,0.00021542,2]
[366140809,1750084243397,-479.0,0.00021542,2]
[366140810,1750084243411,-2387.94271684,0.00021555,5]
[366140811,1750084243424,-500.0,0.00021573,2]
[366140812,1750084243439,-503.02473466,0.00021573,2]
[366140813,1750084243452,-335.88837023,0.00021573,2]
[366140814,1750084243465,-501.06245016,0.00021573,2]
[366140815,1750084243478,-516.93256002,0.00021573,2]
[366140816,1750084243490,-13218.11186149,0.00021598,3]
[366140817,1750084243501,-160.0,0.00021642,2]
[366140818,1750084243513,-500.0,0.00021643,4]
[366140819,1750084243526,-1425.2,0.00021643,4]
[366140820,1750084243538,-460.0,0.00021643,4]
[366140821,1750084243550,-972.08,0.00021643,4]
[366140822,1750084243562,-460.0,0.00021643,4]
[366140823,1750084243576,-819.84,0.00021643,4]
[366140824,1750084243590,-1156.0,0.00021643,4]
[366140825,1750084243602,-460.0,0.00021643,4]
[366140826,1750084243616,-460.0,0.00021643,4]
[366140827,1750084243630,-460.0,0.00021643,4]
[366140828,1750084243644,-460.0,0.00021643,4]
[366140829,1750084243659,-460.0,0.00021643,4]
[366140830,1750084243671,-460.0,0.00021643,4]
[366140831,1750084243683,-460.0,0.00021643,4]
[366140832,1750084243695,-460.0,0.00021643,4]
[366140833,1750084243706,-540.77,0.00021643,4]
[366140834,1750084243717,-2497.27,0.00021643,4]
[366140835,1750084243732,-557.51,0.00021643,4]
[366140836,1750084243747,-1170.3,0.00021643,4]
[366140837,1750084243761,-460.0,0.00021643,4]
[366140838,1750084243772,-1001.87,0.00021643,4]
[366140840,1750084243783,-1782.22,0.00021643,4]
[366140843,1750084243796,-168.0,0.00021693,2]
[366140846,1750084243808,-160.0,0.00021728,3]
[366140850,1750084243821,-464.8,0.00021761,4]
[366140852,1750084243834,-306.16737949,0.00021771,2]
[366140853,1750084243846,-500.0,0.00021771,2]
[366140854,1750084243857,-800.0,0.00021782,2]
[366140855,1750084243867,-2387.94271684,0.00021797,6]
[366140856,1750084243879,-500.0,0.00021815,2]
[366140857,1750084243890,-502.62722475,0.00021815,2]
[366140858,1750084243902,-500.0,0.00021815,2]
[366140859,1750084243914,-600.0,0.00021815,2]
[366140860,1750084243925,-500.0,0.00021815,2]
[366140862,1750084243937,-500.0,0.00021815,2]
[366140864,1750084243948,-446.53826026,0.00021815,2]
[366140866,1750084243960,-500.0,0.00021815,2]
[366140868,1750084243972,-500.0,0.00021815,2]
[366140870,1750084243984,-168.0,0.00021853,2]
[366140872,1750084243995,-768.24,0.00021907,3]
[366140875,1750084244006,-1177.62,0.00021907,3]
[366140877,1750084244018,-588.82,0.00021907,3]
[366140879,1750084244029,-168.0,0.00021914,2]
[366140881,1750084244040,-500.0,0.00021917,2]
[366140883,1750084244052,-1425.2,0.00021917,4]
[366140885,1750084244063,-469.78,0.00021917,4]
[366140887,1750084244075,-972.08,0.00021917,4]
[366140890,1750084244086,-460.0,0.00021917,4]
[366140892,1750084244097,-819.84,0.00021917,4]
[366140894,1750084244109,-1156.0,0.00021917,4]
[366140896,1750084244122,-460.0,0.00021917,4]
[366140898,1750084244133,-460.0,0.00021917,4]
[366140900,1750084244147,-460.0,0.00021917,4]
[366140903,1750084244162,-460.0,0.00021917,4]
[366140905,1750084244174,-460.0,0.00021917,4]
[366140907,1750084244186,-460.0,0.00021917,4]
[366140909,1750084244200,-460.0,0.00021917,4]
[366140911,1750084244211,-460.0,0.00021917,4]
[366140914,1750084244224,-540.77,0.00021917,4]
[366140916,1750084244235,-2497.27,0.00021917,4]
[366140918,1750084244247,-557.51,0.00021917,4]
[366140920,1750084244259,-1170.3,0.00021917,4]
[366140922,1750084244271,-460.0,0.00021917,4]
[366140924,1750084244282,-1001.87,0.00021917,4]
[366140927,1750084244294,-1782.22,0.00021917,4]
[366140929,1750084244306,-3335.64,0.00021918,2]
[366140931,1750084244319,-500.0,0.00021918,2]
[366140933,1750084244331,-500.0,0.00021918,2]
[366140936,1750084244344,-500.0,0.00021918,2]
[366140937,1750084244355,-500.0,0.00021918,2]
[366140939,1750084244367,-500.0,0.00021918,2]
[366140941,1750084244379,-500.0,0.00021918,2]
[366140942,1750084244392,-600.0,0.00021918,2]
[366140945,1750084244404,-259.73560002,0.00021962,2]
[366140946,1750084244415,-500.0,0.00021973,2]
[366140947,1750084244428,-500.0,0.00021973,2]
[366140948,1750084244440,-500.0,0.00021979,2]
[366140949,1750084244451,-503.03400177,0.00021979,2]
[366140950,1750084244463,-500.0,0.00021982,2]
[366140951,1750084244475,-500.0,0.00021982,2]
[366140952,1750084244486,-502.88363574,0.00022,2]
[366140953,1750084244498,-167.0,0.00022,2]
[366140954,1750084244509,-1458.05876294,0.00022,2]
[366140955,1750084244666,-178.0,0.00022,2]
[366140956,1750084244685,-1683.88173781,0.0002201,2]
[366140957,1750084244696,-500.0,0.00022019,2]
[366140958,1750084244706,-168.0,0.00022027,2]
[366140959,1750084244715,-464.8,0.00022035,4]
[366140960,1750084244725,-2387.94271684,0.00022038,6]
[366140961,1750084244735,-168.0,0.00022065,2]
[366140962,1750084244745,-500.0,0.000221,2]
[366140963,1750084244755,-3000.0,0.000221,2]
[366140964,1750084244765,-3000.0,0.0002211,2]
[366140965,1750084244775,-3000.0,0.0002212,2]
[366140966,1750084244787,-442.46825142,0.00022121,2]
[366140967,1750084244797,-3000.0,0.0002213,2]
[366140968,1750084244807,-3000.0,0.0002214,2]
[366140969,1750084244818,-3000.0,0.0002215,2]
[366140970,1750084244828,-3000.0,0.0002216,2]
[366140971,1750084244838,-3000.0,0.0002217,2]
[366140972,1750084244848,-500.0,0.00022173,2]
[366140973,1750084244858,-500.0,0.00022173,2]
[366140974,1750084244868,-485.1128882,0.00022173,2]
[366140975,1750084244878,-500.79031725,0.00022173,2]
[366140976,1750084244888,-500.0,0.00022173,2]
[366140977,1750084244897,-500.0,0.00022173,2]
[366140978,1750084244907,-3000.0,0.0002218,2]
[366140979,1750084244918,-3000.0,0.0002219,2]
[366140980,1750084244927,-500.0,0.00022191,5]
[366140981,1750084244937,-1425.2,0.00022191,4]
[366140982,1750084244947,-972.08,0.00022191,4]
[366140983,1750084244957,-460.0,0.00022191,4]
[366140984,1750084244967,-819.84,0.00022191,4]
[366140985,1750084244977,-1156.0,0.00022191,4]
[366140986,1750084244987,-460.0,0.00022191,4]
[366140987,1750084244996,-460.0,0.00022191,4]
[366140988,1750084245006,-460.0,0.00022191,4]
[366140989,1750084245016,-460.0,0.00022191,4]
[366140990,1750084245025,-460.0,0.00022191,4]
[366140991,1750084245034,-460.0,0.00022191,4]
[366140992,1750084245044,-460.0,0.00022191,4]
[366140993,1750084245054,-460.0,0.00022191,4]
[366140994,1750084245063,-540.77,0.00022191,4]
[366140995,1750084245073,-2497.27,0.00022191,4]
[366140996,1750084245083,-557.51,0.00022191,4]
[366140997,1750084245093,-1170.3,0.00022191,4]
[366140998,1750084245102,-460.0,0.00022191,4]
[366140999,1750084245112,-1001.87,0.00022191,4]
[366141000,1750084245122,-1782.22,0.00022191,4]
[366141001,1750084245132,-3000.0,0.000222,2]
[366141002,1750084245143,-197.06690157,0.000222,69]
[366141003,1750084245156,-3000.0,0.0002221,2]
[366141004,1750084245166,-3000.0,0.0002222,2]
[366141005,1750084245176,-3000.0,0.0002223,2]
[366141006,1750084245185,-3000.0,0.0002224,2]
[366141007,1750084245196,-3000.0,0.0002225,2]
[366141008,1750084245206,-3000.0,0.0002226,2]
[366141009,1750084245215,-3000.0,0.0002227,2]
[366141010,1750084245225,-2387.94271684,0.00022279,6]
[366141011,1750084245235,-3000.0,0.0002228,2]
[366141012,1750084245246,-3000.0,0.0002229,2]
[366141013,1750084245256,-3000.0,0.000223,2]
[366141014,1750084245266,-5000.0,0.00022307,2]
[366141015,1750084245276,-1688.0,0.00022307,2]
[366141016,1750084245285,-3658.82932813,0.00022307,2]
[366141017,1750084245295,-25000.0,0.00022307,2]
[366141018,1750084245305,-17868.64831762,0.00022307,2]
[366141019,1750084245314,-207.4,0.00022307,2]
[366141020,1750084245324,-464.8,0.00022309,4]
[366141021,1750084245334,-3000.0,0.0002231,2]
[366141022,1750084245343,-551.87897986,0.00022319,2]
[366141023,1750084245352,-3000.0,0.0002232,2]
[366141024,1750084245362,-216.0,0.0002233,2]
[366141025,1750084245372,-3000.0,0.0002233,2]
[366141026,1750084245381,-3000.0,0.0002234,2]
[366141027,1750084245391,-168.0,0.00022346,2]
[366141028,1750084245401,-3000.0,0.0002235,2]
[366141029,1750084245411,-3000.0,0.0002236,2]
[366141030,1750084245421,-1750.456,0.00022362,2]
[366141031,1750084245431,-1000.0,0.00022363,2]
[366141032,1750084245441,-508.47803983,0.00022363,2]
[366141033,1750084245452,-1200.0,0.00022363,2]
[366141034,1750084245462,-1000.0,0.00022363,2]
[366141035,1750084245472,-1000.0,0.00022363,2]
[366141036,1750084245483,-1000.0,0.00022363,2]
[366141037,1750084245494,-513.99793096,0.00022363,2]
[366141038,1750084245505,-168.0,0.00022364,2]
[366141039,1750084245515,-3000.0,0.0002237,2]
[366141040,1750084245524,-3000.0,0.0002238,2]
[366141041,1750084245535,-3000.0,0.0002239,2]
[366141042,1750084245545,-3000.0,0.000224,2]
[366141043,1750084245555,-3000.0,0.0002241,2]
[366141044,1750084245564,-165.03132259,0.00022411,2]
[366141045,1750084245574,-1815.222872,0.00022417,2]
[366141046,1750084245585,-3000.0,0.0002242,2]
[366141047,1750084245595,-3000.0,0.0002243,2]
[366141048,1750084245604,-3000.0,0.0002244,2]
[366141049,1750084245614,-3000.0,0.0002245,2]
[366141050,1750084245624,-168.0,0.00022459,2]
[366141051,1750084245634,-3000.0,0.0002246,2]
[366141052,1750084245643,-500.0,0.00022465,2]
[366141053,1750084245653,-1425.2,0.00022465,4]
[366141054,1750084245663,-972.08,0.00022465,4]
[366141055,1750084245673,-311.96,0.00022465,4]
[366141056,1750084245683,-819.84,0.00022465,4]
[366141057,1750084245693,-1156.0,0.00022465,4]
[366141058,1750084245703,-460.0,0.00022465,4]
[366141059,1750084245713,-460.0,0.00022465,4]
[366141060,1750084245723,-460.0,0.00022465,4]
[366141061,1750084245732,-460.0,0.00022465,4]
[366141062,1750084245745,-460.0,0.00022465,4]
[366141063,1750084245755,-460.0,0.00022465,4]
[366141064,1750084245764,-460.0,0.00022465,4]
[366141065,1750084245775,-460.0,0.00022465,4]
[366141066,1750084245785,-540.77,0.00022465,4]
[366141067,1750084245795,-2497.27,0.00022465,4]
[366141068,1750084245805,-557.51,0.00022465,4]
[366141069,1750084245817,-1170.3,0.00022465,4]
[366141070,1750084245827,-590.96,0.00022465,4]
[366141071,1750084245836,-1001.87,0.00022465,4]
[366141072,1750084245847,-1782.22,0.00022465,4]
[366141073,1750084245857,-150.0,0.00022469,2]
[366141074,1750084245867,-152.736,0.00022469,2]
[366141075,1750084245877,-249.539,0.00022469,2]
[366141076,1750084245887,-250.0,0.00022469,2]
[366141077,1750084245897,-258.513,0.00022469,2]
[366141078,1750084245907,-215.988,0.00022469,2]
[366141079,1750084245916,-3000.0,0.0002247,2]
[366141080,1750084245926,-1882.38611826,0.00022472,2]
[366141081,1750084245936,-3000.0,0.0002248,2]
[366141082,1750084245954,-5403.110848,0.0002249,2]
[366141083,1750084245964,-151.0,0.000225,10]
[366141084,1750084245974,-216.0,0.00022507,2]
[366141085,1750084245983,-216.0,0.00022508,2]
[366141086,1750084245994,-2387.94271684,0.00022521,7]
[366141087,1750084246004,-500.0,0.00022521,2]
[366141088,1750084246013,-1000.0,0.00022521,2]
[366141089,1750084246023,-502.36320382,0.00022527,2]
[366141090,1750084246033,-1669.53512149,0.00022527,2]
[366141091,1750084246043,-1000.0,0.0002253,2]
[366141092,1750084246053,-501.74153471,0.0002253,2]
[366141093,1750084246062,-168.0,0.0002254,2]
[366141094,1750084246072,-165.03132259,0.00022548,2]
[366141096,1750084246082,-1091.1586212,0.00022548,2]
[366141097,1750084246092,-177.0323298,0.00022548,2]
[366141098,1750084246102,-158.9308009,0.00022548,2]
[366141099,1750084246111,-177.073212,0.00022548,2]
[366141100,1750084246121,-153.0,0.00022548,2]
[366141101,1750084246130,-573.9994554,0.00022548,2]
[366141102,1750084246143,-158.9308009,0.00022548,2]
[366141103,1750084246153,-153.0,0.00022548,2]
[366141104,1750084246162,-177.073212,0.00022548,2]
[366141105,1750084246172,-573.9994554,0.00022548,2]
[366141106,1750084246182,-653.0,0.00022559,2]
[366141107,1750084246193,-2160.0,0.00022559,2]
[366141108,1750084246203,-406.0,0.00022559,2]
[366141109,1750084246213,-973.804,0.00022559,2]
[366141110,1750084246222,-464.8,0.00022583,4]
[366141111,1750084246234,-216.0,0.00022625,2]
[366141112,1750084246244,-165.03132259,0.00022712,2]
[366141113,1750084246254,-1000.0,0.00022721,2]
[366141114,1750084246264,-1000.0,0.00022721,2]
[366141115,1750084246274,-1000.0,0.00022721,2]
[366141116,1750084246284,-629.63536797,0.00022721,2]
[366141117,1750084246295,-158.25660062,0.00022722,3]
[366141119,1750084246304,-216.0,0.00022734,2]
[366141121,1750084246314,-500.0,0.00022739,6]
[366141123,1750084246324,-1425.2,0.00022739,4]
[366141125,1750084246334,-972.08,0.00022739,4]
[366141127,1750084246344,-819.84,0.00022739,4]
[366141129,1750084246353,-1156.0,0.00022739,4]
[366141131,1750084246363,-460.0,0.00022739,4]
[366141133,1750084246372,-460.0,0.00022739,4]
[366141135,1750084246383,-460.0,0.00022739,4]
[366141137,1750084246392,-460.0,0.00022739,4]
[366141138,1750084246402,-460.0,0.00022739,4]
[366141140,1750084246411,-473.69,0.00022739,4]
[366141142,1750084246421,-460.0,0.00022739,4]
[366141144,1750084246430,-460.0,0.00022739,4]
[366141146,1750084246440,-540.77,0.00022739,4]
[366141148,1750084246450,-2497.27,0.00022739,4]
[366141150,1750084246459,-557.51,0.00022739,4]
[366141152,1750084246469,-1170.3,0.00022739,4]
[366141154,1750084246478,-1001.87,0.00022739,4]
[366141157,1750084246490,-1782.22,0.00022739,4]
[366141159,1750084246500,-2387.94271684,0.00022762,7]
[366141161,1750084246510,-151.0,0.000228,9]
[366141163,1750084246519,-216.0,0.00022811,2]
[366141164,1750084246529,-216.0,0.00022815,2]
[366141166,1750084246538,-165.03132259,0.00022849,2]
[366141168,1750084246548,-5000.0,0.00022855,2]
[366141170,1750084246558,-464.8,0.00022856,4]
[366141172,1750084246567,-151.0,0.00022856,7]
[366141174,1750084246577,-151.0,0.000229,10]
[366141176,1750084246587,-1500.0,0.00022911,2]
[366141178,1750084246597,-1800.0,0.00022911,2]
[366141180,1750084246606,-1500.0,0.00022911,2]
[366141182,1750084246616,-1500.0,0.00022911,2]
[366141184,1750084246625,-160.35931239,0.00022911,2]
[366141186,1750084246635,-73021.44471021,0.00022912,2]
[366141188,1750084246644,-151.0,0.00022912,7]
[366141190,1750084246654,-151.0,0.00022912,7]
[366141192,1750084246663,-151.0,0.00022912,7]
[366141194,1750084246675,-151.0,0.00022912,7]
[366141196,1750084246684,-151.0,0.00022912,7]
[366141198,1750084246695,-151.0,0.00022912,7]
[366141200,1750084246705,-4430.843199,0.00022912,2]
[366141202,1750084246714,-4430.843199,0.00022912,2]
[366141204,1750084246724,-151.0,0.00022912,7]
[366141206,1750084246733,-151.0,0.00022912,7]
[366141208,1750084246745,-5003.46,0.00022914,2]
[366141210,1750084246755,-151.0,0.00022914,7]
[366141212,1750084246765,-151.0,0.00022914,7]
[366141214,1750084246774,-151.0,0.00022914,7]
[366141216,1750084246784,-800.0,0.00022922,2]
[366141218,1750084246794,-2047.0,0.00022946,2]
[366141220,1750084246803,-259.73560002,0.00022947,2]
[366141222,1750084246813,-216.0,0.00022964,2]
[366141224,1750084246822,-160.0,0.00023,3]
[366141226,1750084246832,-3000.0,0.00023,2]
[366141228,1750084246842,-639.0,0.00023,2]
[366141230,1750084246852,-835.67987521,0.00023,3]
[366141232,1750084246862,-424.54874296,0.00023,3]
[366141234,1750084246871,-229.90125484,0.00023,3]
[366141236,1750084246881,-160.0,0.00023,3]
[366141238,1750084246892,-2387.94271684,0.00023003,8]
[366141240,1750084246901,-3000.0,0.0002301,2]
[366141242,1750084246911,-160.0,0.00023012,2]
[366141244,1750084246921,-500.0,0.00023013,2]
[366141246,1750084246930,-1425.2,0.00023013,4]
[366141249,1750084246950,-972.08,0.00023013,4]
[366141251,1750084246963,-819.84,0.00023013,4]
[366141253,1750084246974,-1156.0,0.00023013,4]
[366141255,1750084246984,-460.0,0.00023013,4]
[366141257,1750084246995,-460.0,0.00023013,4]
[366141259,1750084247006,-430.18030966,0.00023013,4]
[366141261,1750084247016,-460.0,0.00023013,4]
[366141264,1750084247026,-460.0,0.00023013,4]
[366141266,1750084247036,-460.0,0.00023013,4]
[366141268,1750084247045,-460.0,0.00023013,4]
[366141269,1750084247055,-540.77,0.00023013,4]
[366141270,1750084247065,-2497.27,0.00023013,4]
[366141271,1750084247075,-557.51,0.00023013,4]
[366141272,1750084247085,-1170.3,0.00023013,4]